[Event "FIDE World Senior-50 CC 2023"]
[Site "Terrasini"]
[Date "2023.10.28"]
[Round "4.11"]
[White "Issakainen, Ari"]
[Black "Degraeve, Jean-Marc"]
[Result "0-1"]
[ECO "A35"]
[WhiteElo "2152"]
[BlackElo "2479"]
[Annotator "ChessBase"]
[PlyCount "76"]
[EventDate "2023.10.22"]
[EventType "swiss"]
[EventCountry "ITA"]
[SourceTitle "playchess.com"]
[Source "ChessBase"]
[SourceQuality "1"]
[TimeControl "40/5400+30:1800+30"]

1. d4 {[%emt 0:00:30]} g6 {[%emt 0:03:57]} 2. c4 {[%emt 0:00:00]} Bg7 {[%emt 0:00:07]} 3. Nc3 {[%emt 0:00:03]} c5 {[%emt 0:01:56]} 4. Nf3 {[%emt 0:01:09]} cxd4 {[%emt 0:00:47]} 5. Nxd4 {[%emt 0:00:08]} Nc6 {[%emt 0:00:24]} 6. Nc2 {[%emt 0:01:48]} Bxc3+ {[%emt 0:00:31]} 7. bxc3 {[%emt 0:00:08]} Nf6 {[%emt 0:00:58]} 8. Nb4 {[%emt 0:09:45]} Qa5 {[%emt 0:02:13]} 9. Nd5 {[%emt 0:08:05]} d6 {[%emt 0:00:08]} 10. Nxf6+ {[%emt 0:04:03]} exf6 {[%emt 0:00:02]} 11. Bb2 {[%emt 0:08:39]} Ke7 {[%emt 0:04:16]} 12. Qd5 {[%emt 0:11:44]} Be6 {[%emt 0:01:37]} 13. Qb5 {[%emt 0:00:36]} Rab8 {[%emt 0:02:48]} 14. e4 {[%emt 0:10:11]} a6 {[%emt 0:05:31]} 15. Qxa5 {[%emt 0:05:46]} Nxa5 {[%emt 0:00:08]} 16. O-O-O {[%emt 0:00:19]} Rbc8 {[%emt 0:09:53]} 17. Ba3 {[%emt 0:01:44]} Rhd8 {[%emt 0:00:32]} 18. f4 {[%emt 0:01:12]} Nxc4 {[%emt 0:03:39]} 19. Bxc4 {[%emt 0:00:53]} Rxc4 {[%emt 0:00:09]} 20. e5 {[%emt 0:01:44]} fxe5 {[%emt 0:00:22]} 21. fxe5 {[%emt 0:00:15]} Rxc3+ {[%emt 0:00:24]} 22. Kb2 {[%emt 0:00:17]} Rdc8 {[%emt 0:00:41]} 23. Bxd6+ {[%emt 0:01:56]} Ke8 {[%emt 0:00:25]} 24. Rd2 {[%emt 0:00:42]} Bf5 {[%emt 0:00:52]} 25. Rhd1 {[%emt 0:02:59]} Rc2+ {[%emt 0:00:05]} 26. Ka1 {[%emt 0:00:44]} Bg4 {[%emt 0:01:34]} 27. Rxc2 {[%emt 0:01:12]} Rxc2 {[%emt 0:00:10]} 28. Rg1 {[%emt 0:01:14]} Be6 {[%emt 0:00:24]} 29. a3 {[%emt 0:01:24]} Bd5 {[%emt 0:00:21]} 30. Kb1 {[%emt 0:02:22]} Rxg2 {[%emt 0:01:16]} 31. Rxg2 {[%emt 0:00:12]} Bxg2 {[%emt 0:00:01]} 32. Kc2 {[%emt 0:00:34]} Kd7 {[%emt 0:00:07]} 33. Kd3 {[%emt 0:00:23]} f6 {[%emt 0:01:21]} 34. Kd4 {[%emt 0:00:11]} Ke6 {[%emt 0:00:06]} 35. Bc7 {[%emt 0:00:20]} f5 {[%emt 0:00:19]} 36. h4 {[%emt 0:00:30]} f4 {[%emt 0:00:26]} 37. Bd6 {[%emt 0:00:58]} Kf5 {[%emt 0:00:24]} 38. Bc7 {[%emt 0:01:54]} Bc6 {[%emt 0:00:54]} 0-1

[Event "FIDE World Senior-50 CC 2023"]
[Site "Terrasini"]
[Date "2023.10.28"]
[Round "4.12"]
[White "Seul, Georg"]
[Black "Fayard, Alain"]
[Result "1/2-1/2"]
[ECO "B12"]
[WhiteElo "2383"]
[BlackElo "2158"]
[Annotator "ChessBase"]
[PlyCount "51"]
[EventDate "2023.10.22"]
[EventType "swiss"]
[EventCountry "ITA"]
[SourceTitle "playchess.com"]
[Source "ChessBase"]
[SourceQuality "1"]
[TimeControl "40/5400+30:1800+30"]

1. e4 {[%emt 0:00:30]} c6 {[%emt 0:01:18]} 2. d4 {[%emt 0:00:00]} d5 {[%emt 0:00:13]} 3. e5 {[%emt 0:00:00]} c5 {[%emt 0:00:14]} 4. dxc5 {[%emt 0:00:11]} e6 {[%emt 0:00:29]} 5. a3 {[%emt 0:00:42]} Bxc5 {[%emt 0:00:41]} 6. Nf3 {[%emt 0:00:29]} f6 {[%emt 0:01:49]} 7. b4 {[%emt 0:01:15]} Be7 {[%emt 0:02:34]} 8. Bb5+ {[%emt 0:01:32]} Bd7 {[%emt 0:09:00]} 9. Bd3 {[%emt 0:00:17]} Nc6 {[%emt 0:02:43]} 10. Bb2 {[%emt 0:00:35]} a6 {[%emt 0:10:04]} 11. Nbd2 {[%emt 0:12:35]} Nh6 {[%emt 0:02:07]} 12. O-O {[%emt 0:01:31]} Nf7 {[%emt 0:02:21]} 13. exf6 {[%emt 0:01:04]} Bxf6 {[%emt 0:01:28]} 14. Bxf6 {[%emt 0:00:15]} Qxf6 {[%emt 0:00:10]} 15. c4 {[%emt 0:00:48]} O-O {[%emt 0:02:17]} 16. Re1 {[%emt 0:21:47]} Rad8 {[%emt 0:06:27]} 17. Qe2 {[%emt 0:03:50]} Nfe5 {[%emt 0:08:02]} 18. Rad1 {[%emt 0:05:23]} Nxd3 {[%emt 0:03:06]} 19. Qxd3 {[%emt 0:00:24]} Be8 {[%emt 0:04:55]} 20. b5 {[%emt 0:21:28]} axb5 {[%emt 0:00:59]} 21. cxb5 {[%emt 0:00:09]} Nb8 {[%emt 0:06:10]} 22. a4 {[%emt 0:03:48]} Nd7 {[%emt 0:01:24]} 23. Qe3 {[%emt 0:00:50]} e5 {[%emt 0:03:09]} 24. Nxe5 {[%emt 0:05:33]} Nxe5 {[%emt 0:00:17]} 25. Qxe5 {[%emt 0:00:03]} Qxf2+ {[%emt 0:00:22]} 26. Kh1 {[%emt 0:00:28]} 1/2-1/2

[Event "FIDE World Senior-50 CC 2023"]
[Site "Terrasini"]
[Date "2023.10.28"]
[Round "4.13"]
[White "Lasinskas, Povilas"]
[Black "Mrva, Martin"]
[Result "0-1"]
[ECO "A46"]
[WhiteElo "2143"]
[BlackElo "2366"]
[Annotator "ChessBase"]
[PlyCount "116"]
[EventDate "2023.10.22"]
[EventType "swiss"]
[EventCountry "ITA"]
[SourceTitle "playchess.com"]
[Source "ChessBase"]
[SourceQuality "1"]
[TimeControl "40/5400+30:1800+30"]

1. d4 {[%emt 0:02:22]} d6 {[%emt 0:02:34]} 2. Nf3 {[%emt 0:00:24]} Bg4 {[%emt 0:00:44]} 3. Nbd2 {[%emt 0:01:10]} Nf6 {[%emt 0:06:27]} 4. h3 {[%emt 0:02:09]} Bf5 {[%emt 0:01:18]} 5. e3 {[%emt 0:00:29]} Nc6 {[%emt 0:01:14]} 6. Bd3 {[%emt 0:01:43]} Bxd3 {[%emt 0:06:42]} 7. cxd3 {[%emt 0:00:04]} e5 {[%emt 0:00:17]} 8. Qb3 {[%emt 0:03:47]} Rb8 {[%emt 0:05:42]} 9. d5 {[%emt 0:03:51]} Ne7 {[%emt 0:00:31]} 10. e4 {[%emt 0:00:11]} c6 {[%emt 0:31:22]} 11. Qa4 {[%emt 0:05:49]} b5 {[%emt 0:09:02]} 12. Qxa7 {[%emt 0:00:22]} cxd5 {[%emt 0:00:24]} 13. O-O {[%emt 0:00:56]} d4 {[%emt 0:04:05]} 14. Qa3 {[%emt 0:04:02]} Nc6 {[%emt 0:01:50]} 15. Qb3 {[%emt 0:00:31]} Be7 {[%emt 0:01:47]} 16. a4 {[%emt 0:01:49]} Na5 {[%emt 0:07:34]} 17. Qd1 {[%emt 0:01:53]} O-O {[%emt 0:00:07]} 18. b4 {[%emt 0:30:12]} Nc6 {[%emt 0:00:34]} 19. Ba3 {[%emt 0:01:57]} Qb6 {[%emt 0:03:20]} 20. a5 {[%emt 0:01:02]} Qb7 {[%emt 0:00:54]} 21. Qb3 {[%emt 0:00:17]} Rbc8 {[%emt 0:00:25]} 22. Rac1 {[%emt 0:00:25]} Nb8 {[%emt 0:00:13]} 23. Rfd1 {[%emt 0:09:59]} Na6 {[%emt 0:00:26]} 24. Nf1 {[%emt 0:01:37]} Nh5 {[%emt 0:01:25]} 25. Ng3 {[%emt 0:02:56]} Nf4 {[%emt 0:00:26]} 26. Kf1 {[%emt 0:00:08]} g6 {[%emt 0:00:08]} 27. Ne2 {[%emt 0:00:11]} Ne6 {[%emt 0:00:36]} 28. Rxc8 {[%emt 0:03:29]} Rxc8 {[%emt 0:00:05]} 29. Rc1 {[%emt 0:00:36]} Rc6 {[%emt 0:03:17]} 30. Rxc6 {[%emt 0:00:52]} Qxc6 {[%emt 0:00:05]} 31. Bc1 {[%emt 0:00:14]} Kg7 {[%emt 0:01:21]} 32. Bd2 {[%emt 0:00:14]} Nec7 {[%emt 0:01:10]} 33. Ne1 {[%emt 0:03:07]} d5 {[%emt 0:00:30]} 34. f3 {[%emt 0:01:13]} Qe6 {[%emt 0:03:06]} 35. Nc2 {[%emt 0:02:04]} Bh4 {[%emt 0:00:50]} 36. Be1 {[%emt 0:00:17]} Bg5 {[%emt 0:01:05]} 37. Bf2 {[%emt 0:01:35]} Bh6 {[%emt 0:00:51]} 38. Na3 {[%emt 0:03:17]} dxe4 {[%emt 0:00:31]} 39. Qxe6 {[%emt 0:00:25]} Nxe6 {[%emt 0:00:42]} 40. fxe4 {[%emt 0:00:28]} Nec7 {[%emt 0:01:12]} 41. Be1 {[%emt 0:30:28]} f5 {[%emt 0:30:49]} 42. exf5 {[%emt 0:03:40]} gxf5 {[%emt 0:00:07]} 43. g4 {[%emt 0:00:05]} f4 {[%emt 0:02:20]} 44. Ng1 {[%emt 0:00:29]} Kf6 {[%emt 0:01:29]} 45. Nf3 {[%emt 0:00:36]} Bf8 {[%emt 0:00:51]} 46. Nd2 {[%emt 0:01:14]} Nxb4 {[%emt 0:01:32]} 47. Ne4+ {[%emt 0:00:28]} Kg6 {[%emt 0:00:14]} 48. Ke2 {[%emt 0:00:46]} f3+ {[%emt 0:01:04]} 49. Kxf3 {[%emt 0:02:00]} Nxd3 {[%emt 0:00:31]} 50. Nc2 {[%emt 0:00:03]} b4 {[%emt 0:00:59]} 51. Nd2 {[%emt 0:00:44]} Kf6 {[%emt 0:00:00]} 52. Bg3 {[%emt 0:00:00]} Na6 {[%emt 0:00:00]} 53. Na1 {[%emt 0:00:00]} Ke6 {[%emt 0:00:00]} 54. h4 {[%emt 0:00:00]} Ndc5 {[%emt 0:00:00]} 55. h5 {[%emt 0:00:00]} Bh6 {[%emt 0:00:00]} 56. Nc4 {[%emt 0:00:00]} e4+ {[%emt 0:00:00]} 57. Ke2 {[%emt 0:00:00]} d3+ {[%emt 0:00:00]} 58. Kf2 {[%emt 0:00:00]} Bg7 {[%emt 0:00:00]} 0-1

[Event "FIDE World Senior-50 CC 2023"]
[Site "Terrasini"]
[Date "2023.10.28"]
[Round "4.14"]
[White "Paschall, William"]
[Black "Minnican, Alan"]
[Result "1-0"]
[ECO "C41"]
[WhiteElo "2329"]
[BlackElo "2071"]
[Annotator "ChessBase"]
[PlyCount "89"]
[EventDate "2023.10.22"]
[EventType "swiss"]
[EventCountry "ITA"]
[SourceTitle "playchess.com"]
[Source "ChessBase"]
[SourceQuality "1"]
[TimeControl "40/5400+30:1800+30"]

1. d4 {[%emt 0:00:51]} d6 {[%emt 0:00:37]} 2. Nc3 {[%emt 0:05:54]} Nf6 {[%emt 0:00:27]} 3. e4 {[%emt 0:01:43]} e5 {[%emt 0:00:30]} 4. Nge2 {[%emt 0:03:22]} exd4 {[%emt 0:05:27]} 5. Nxd4 {[%emt 0:00:25]} Be7 {[%emt 0:00:02]} 6. Be2 {[%emt 0:02:35]} O-O {[%emt 0:00:07]} 7. O-O {[%emt 0:01:16]} Re8 {[%emt 0:01:08]} 8. f4 {[%emt 0:03:32]} c5 {[%emt 0:02:31]} 9. Nb3 {[%emt 0:05:15]} Nc6 {[%emt 0:01:06]} 10. Kh1 {[%emt 0:02:46]} a5 {[%emt 0:09:18]} 11. a4 {[%emt 0:04:50]} Nb4 {[%emt 0:07:22]} 12. Bf3 {[%emt 0:06:38]} Be6 {[%emt 0:08:40]} 13. Rf2 {[%emt 0:13:43]} Qb6 {[%emt 0:03:52]} 14. f5 {[%emt 0:11:45]} Bd7 {[%emt 0:21:03]} 15. g4 {[%emt 0:07:19]} Bc6 {[%emt 0:02:42]} 16. Nd2 {[%emt 0:07:16]} d5 {[%emt 0:06:38]} 17. exd5 {[%emt 0:01:02]} Nbxd5 {[%emt 0:03:02]} 18. Nxd5 {[%emt 0:01:11]} Bxd5 {[%emt 0:03:45]} 19. Bxd5 {[%emt 0:01:02]} Nxd5 {[%emt 0:00:09]} 20. Nc4 {[%emt 0:00:45]} Qc6 {[%emt 0:00:52]} 21. Qf3 {[%emt 0:08:19]} Bh4 {[%emt 0:03:26]} 22. Rf1 {[%emt 0:00:10]} Nb4 {[%emt 0:03:04]} 23. Qxc6 {[%emt 0:00:23]} Nxc6 {[%emt 0:00:22]} 24. Be3 {[%emt 0:05:52]} Re4 {[%emt 0:03:16]} 25. b3 {[%emt 0:00:17]} Bf6 {[%emt 0:04:37]} 26. Rad1 {[%emt 0:02:54]} Bd4 {[%emt 0:02:23]} 27. Bf4 {[%emt 0:00:35]} Re2 {[%emt 0:01:17]} 28. Bd2 {[%emt 0:01:27]} Ne5 {[%emt 0:02:17]} 29. Rde1 {[%emt 0:00:35]} Rxe1 {[%emt 0:00:26]} 30. Rxe1 {[%emt 0:00:20]} Nf3 {[%emt 0:02:40]} 31. Re2 {[%emt 0:00:34]} Bf6 {[%emt 0:01:29]} 32. Bxa5 {[%emt 0:00:26]} Nd4 {[%emt 0:00:38]} 33. Rg2 {[%emt 0:00:54]} h6 {[%emt 0:00:54]} 34. Bc3 {[%emt 0:00:33]} Rd8 {[%emt 0:00:31]} 35. Bxd4 {[%emt 0:00:14]} Rxd4 {[%emt 0:00:33]} 36. h3 {[%emt 0:00:13]} Kf8 {[%emt 0:00:43]} 37. Rd2 {[%emt 0:00:22]} Re4 {[%emt 0:00:33]} 38. Kg2 {[%emt 0:00:18]} Ke7 {[%emt 0:00:26]} 39. Kf3 {[%emt 0:00:14]} Re1 {[%emt 0:00:30]} 40. Re2+ {[%emt 0:00:08]} Rxe2 {[%emt 0:00:05]} 41. Kxe2 {[%emt 0:30:04]} Kd7 {[%emt 0:30:43]} 42. Kd3 {[%emt 0:00:16]} Kc6 {[%emt 0:00:00]} 43. Ke4 {[%emt 0:00:00]} Kd7 {[%emt 0:00:00]} 44. Kd5 {[%emt 0:00:00]} Bd4 {[%emt 0:00:00]} 45. Nd6 {[%emt 0:00:00]} 1-0

[Event "FIDE World Senior-50 CC 2023"]
[Site "Terrasini"]
[Date "2023.10.28"]
[Round "4.15"]
[White "Mantovani, Renzo"]
[Black "Grant, Jonathan I M"]
[Result "0-1"]
[ECO "B19"]
[WhiteElo "2236"]
[BlackElo "2150"]
[Annotator "ChessBase"]
[PlyCount "76"]
[EventDate "2023.10.22"]
[EventType "swiss"]
[EventCountry "ITA"]
[SourceTitle "playchess.com"]
[Source "ChessBase"]
[SourceQuality "1"]
[TimeControl "40/5400+30:1800+30"]

1. e4 {[%emt 0:04:27]} c6 {[%emt 0:00:01]} 2. d4 {[%emt 0:00:06]} d5 {[%emt 0:00:04]} 3. Nc3 {[%emt 0:00:12]} dxe4 {[%emt 0:00:04]} 4. Nxe4 {[%emt 0:00:09]} Bf5 {[%emt 0:00:03]} 5. Ng3 {[%emt 0:00:10]} Bg6 {[%emt 0:00:05]} 6. Nf3 {[%emt 0:00:23]} e6 {[%emt 0:02:53]} 7. h4 {[%emt 0:01:04]} h6 {[%emt 0:00:05]} 8. h5 {[%emt 0:02:00]} Bh7 {[%emt 0:00:07]} 9. Bd3 {[%emt 0:00:08]} Bxd3 {[%emt 0:00:06]} 10. Qxd3 {[%emt 0:00:08]} Nf6 {[%emt 0:00:09]} 11. Bd2 {[%emt 0:00:22]} Bd6 {[%emt 0:06:58]} 12. Ne4 {[%emt 0:04:30]} Nxe4 {[%emt 0:01:07]} 13. Qxe4 {[%emt 0:01:46]} Nd7 {[%emt 0:05:28]} 14. O-O-O {[%emt 0:00:26]} Nf6 {[%emt 0:03:13]} 15. Qe2 {[%emt 0:00:16]} Qc7 {[%emt 0:01:15]} 16. Kb1 {[%emt 0:00:25]} O-O-O {[%emt 0:08:30]} 17. c4 {[%emt 0:04:37]} c5 {[%emt 0:02:42]} 18. Bc3 {[%emt 0:01:34]} cxd4 {[%emt 0:19:21]} 19. Bxd4 {[%emt 0:05:05]} Bc5 {[%emt 0:01:31]} 20. b3 {[%emt 0:02:11]} Bxd4 {[%emt 0:04:39]} 21. Nxd4 {[%emt 0:01:02]} Qf4 {[%emt 0:02:47]} 22. Nb5 {[%emt 0:29:36]} a6 {[%emt 0:06:28]} 23. Nc3 {[%emt 0:04:04]} Rxd1+ {[%emt 0:09:55]} 24. Rxd1 {[%emt 0:02:33]} Qf5+ {[%emt 0:02:35]} 25. Kb2 {[%emt 0:00:34]} Rd8 {[%emt 0:02:15]} 26. Rxd8+ {[%emt 0:05:41]} Kxd8 {[%emt 0:00:07]} 27. Qd2+ {[%emt 0:10:24]} Nd7 {[%emt 0:12:09]} 28. Qe2 {[%emt 0:02:54]} Nc5 {[%emt 0:01:37]} 29. Qd2+ {[%emt 0:10:24]} Kc8 {[%emt 0:02:08]} 30. f3 {[%emt 0:01:16]} Qxh5 {[%emt 0:00:50]} 31. Qd6 {[%emt 0:01:06]} Nd7 {[%emt 0:02:08]} 32. Ne4 {[%emt 0:01:36]} Qe5+ {[%emt 0:02:01]} 33. Kc2 {[%emt 0:00:27]} g5 {[%emt 0:02:29]} 34. Qb4 {[%emt 0:03:45]} Kc7 {[%emt 0:00:14]} 35. c5 {[%emt 0:01:21]} Qd5 {[%emt 0:01:15]} 36. Qa5+ {[%emt 0:00:34]} Kb8 {[%emt 0:00:32]} 37. b4 {[%emt 0:00:52]} Ne5 {[%emt 0:00:27]} 38. Kb2 {[%emt 0:00:42]} Nc4+ {[%emt 0:00:09]} 0-1

[Event "FIDE World Senior-50 CC 2023"]
[Site "Terrasini"]
[Date "2023.10.28"]
[Round "4.16"]
[White "Nikolaidis, Konstantinos"]
[Black "Plotkin, Victor"]
[Result "1/2-1/2"]
[ECO "A34"]
[WhiteElo "2096"]
[BlackElo "2229"]
[Annotator "ChessBase"]
[PlyCount "67"]
[EventDate "2023.10.22"]
[EventType "swiss"]
[EventCountry "ITA"]
[SourceTitle "playchess.com"]
[Source "ChessBase"]
[SourceQuality "1"]
[TimeControl "40/5400+30:1800+30"]

1. c4 {[%emt 0:00:14]} c5 {[%emt 0:00:21]} 2. Nf3 {[%emt 0:00:14]} Nc6 {[%emt 0:00:18]} 3. Nc3 {[%emt 0:00:40]} Nf6 {[%emt 0:07:56]} 4. g3 {[%emt 0:02:17]} e5 {[%emt 0:02:42]} 5. Bg2 {[%emt 0:00:39]} Be7 {[%emt 0:00:29]} 6. O-O {[%emt 0:01:37]} O-O {[%emt 0:00:20]} 7. d3 {[%emt 0:01:00]} d6 {[%emt 0:02:21]} 8. a3 {[%emt 0:01:17]} h6 {[%emt 0:03:08]} 9. Rb1 {[%emt 0:01:03]} a5 {[%emt 0:04:29]} 10. Ne1 {[%emt 0:05:18]} Be6 {[%emt 0:02:43]} 11. Nd5 {[%emt 0:01:38]} Rb8 {[%emt 0:08:40]} 12. Bd2 {[%emt 0:05:16]} Re8 {[%emt 0:04:25]} 13. Nc2 {[%emt 0:04:43]} Nd4 {[%emt 0:04:50]} 14. b4 {[%emt 0:03:46]} axb4 {[%emt 0:03:57]} 15. axb4 {[%emt 0:00:07]} Nxd5 {[%emt 0:03:40]} 16. cxd5 {[%emt 0:01:54]} Bg4 {[%emt 0:01:25]} 17. Re1 {[%emt 0:05:24]} Nxc2 {[%emt 0:11:15]} 18. Qxc2 {[%emt 0:00:09]} b6 {[%emt 0:01:26]} 19. h3 {[%emt 0:06:38]} Bd7 {[%emt 0:02:52]} 20. Ra1 {[%emt 0:03:44]} Ra8 {[%emt 0:01:46]} 21. Qb2 {[%emt 0:02:49]} Qc7 {[%emt 0:02:18]} 22. Rec1 {[%emt 0:03:44]} Reb8 {[%emt 0:01:49]} 23. Rcb1 {[%emt 0:47:49]} Qc8 {[%emt 0:04:32]} 24. Kh2 {[%emt 0:00:00]} Rxa1 {[%emt 0:01:10]} 25. Rxa1 {[%emt 0:00:00]} Ra8 {[%emt 0:00:42]} 26. Ra3 {[%emt 0:00:00]} Rxa3 {[%emt 0:01:51]} 27. Qxa3 {[%emt 0:00:00]} Qb7 {[%emt 0:00:32]} 28. Bc3 {[%emt 0:00:00]} Bd8 {[%emt 0:01:51]} 29. Qa1 {[%emt 0:00:00]} Bc8 {[%emt 0:04:05]} 30. Qa4 {[%emt 0:00:00]} Bd7 {[%emt 0:00:50]} 31. Qa1 {[%emt 0:00:00]} Bc8 {[%emt 0:02:57]} 32. Qa4 {[%emt 0:00:00]} Bd7 {[%emt 0:14:50]} 33. Qa1 {[%emt 0:05:00]} f6 {[%emt 0:00:30]} 34. f4 1/2-1/2

[Event "FIDE World Senior-50 CC 2023"]
[Site "Terrasini"]
[Date "2023.10.28"]
[Round "4.17"]
[White "Dieu, Bruno"]
[Black "Malinovsky, Petr"]
[Result "1-0"]
[ECO "B27"]
[WhiteElo "2221"]
[BlackElo "1980"]
[Annotator "ChessBase"]
[PlyCount "70"]
[EventDate "2023.10.22"]
[EventType "swiss"]
[EventCountry "ITA"]
[SourceTitle "playchess.com"]
[Source "ChessBase"]
[SourceQuality "1"]
[TimeControl "40/5400+30:1800+30"]

1. Nc3 {[%emt 0:00:04]} c5 {[%emt 0:00:15]} 2. Nf3 {[%emt 0:00:05]} g6 {[%emt 0:00:08]} 3. d4 {[%emt 0:00:05]} cxd4 {[%emt 0:00:13]} 4. Qxd4 {[%emt 0:00:08]} Nf6 {[%emt 0:00:16]} 5. e4 {[%emt 0:00:18]} Nc6 {[%emt 0:01:02]} 6. Qa4 {[%emt 0:02:53]} d6 {[%emt 0:00:14]} 7. e5 {[%emt 0:02:09]} dxe5 {[%emt 0:01:08]} 8. Nxe5 {[%emt 0:00:13]} Bd7 {[%emt 0:01:28]} 9. Nxd7 {[%emt 0:03:53]} Qxd7 {[%emt 0:01:07]} 10. Be3 {[%emt 0:00:58]} Bg7 {[%emt 0:02:55]} 11. Rd1 {[%emt 0:06:05]} Qc8 {[%emt 0:02:22]} 12. Be2 {[%emt 0:03:06]} O-O {[%emt 0:09:02]} 13. O-O {[%emt 0:03:01]} Qf5 {[%emt 0:10:40]} 14. Qb5 {[%emt 0:06:56]} Qxb5 {[%emt 0:01:25]} 15. Nxb5 {[%emt 0:00:08]} a6 {[%emt 0:02:36]} 16. Nd4 {[%emt 0:02:38]} Nxd4 {[%emt 0:04:40]} 17. Bxd4 {[%emt 0:03:46]} Ne4 {[%emt 0:03:13]} 18. Bxg7 {[%emt 0:01:15]} Kxg7 {[%emt 0:00:07]} 19. Rd7 {[%emt 0:00:49]} Rab8 {[%emt 0:02:45]} 20. Bf3 {[%emt 0:03:20]} Nd6 {[%emt 0:03:55]} 21. Re1 {[%emt 0:07:26]} Rfe8 {[%emt 0:00:49]} 22. Rdxe7 {[%emt 0:02:51]} Rxe7 {[%emt 0:00:09]} 23. Rxe7 {[%emt 0:00:01]} Kf6 {[%emt 0:00:55]} 24. Re2 {[%emt 0:01:34]} b5 {[%emt 0:00:46]} 25. a3 {[%emt 0:03:42]} Nc4 {[%emt 0:01:47]} 26. c3 {[%emt 0:05:25]} Rd8 {[%emt 0:00:36]} 27. Rc2 {[%emt 0:00:23]} Nd2 {[%emt 0:13:08]} 28. Be2 {[%emt 0:04:05]} Ke5 {[%emt 0:06:43]} 29. f3 {[%emt 0:10:51]} Nb3 {[%emt 0:01:58]} 30. Kf2 {[%emt 0:01:06]} f5 {[%emt 0:00:47]} 31. c4 {[%emt 0:04:36]} Rc8 {[%emt 0:03:41]} 32. Rc3 {[%emt 0:00:17]} bxc4 {[%emt 0:00:49]} 33. Bxc4 {[%emt 0:01:28]} Nc5 {[%emt 0:02:36]} 34. Bxa6 {[%emt 0:00:41]} Kd4 {[%emt 0:00:16]} 35. Bxc8 {[%emt 0:00:14]} Kd5 {[%emt 0:23:29]} 1-0

[Event "FIDE World Senior-50 CC 2023"]
[Site "Terrasini"]
[Date "2023.10.28"]
[Round "4.18"]
[White "Mussanti, Diego"]
[Black "Melero Sanchez, Pere"]
[Result "1-0"]
[ECO "B11"]
[WhiteElo "2183"]
[BlackElo "1888"]
[Annotator "ChessBase"]
[PlyCount "63"]
[EventDate "2023.10.22"]
[EventType "swiss"]
[EventCountry "ITA"]
[SourceTitle "playchess.com"]
[Source "ChessBase"]
[SourceQuality "1"]
[TimeControl "40/5400+30:1800+30"]

1. e4 {[%emt 0:00:04]} c6 {[%emt 0:00:02]} 2. Nc3 {[%emt 0:00:15]} d5 {[%emt 0:00:12]} 3. Nf3 {[%emt 0:00:18]} Bg4 {[%emt 0:00:23]} 4. h3 {[%emt 0:00:10]} Bxf3 {[%emt 0:00:08]} 5. Qxf3 {[%emt 0:00:13]} Nf6 {[%emt 0:00:11]} 6. d3 {[%emt 0:00:34]} e6 {[%emt 0:00:49]} 7. Bd2 {[%emt 0:00:44]} Be7 {[%emt 0:04:52]} 8. g4 {[%emt 0:02:30]} d4 {[%emt 0:02:13]} 9. Ne2 {[%emt 0:00:40]} c5 {[%emt 0:01:32]} 10. g5 {[%emt 0:01:54]} Nfd7 {[%emt 0:00:53]} 11. h4 {[%emt 0:00:35]} Nc6 {[%emt 0:01:25]} 12. O-O-O {[%emt 0:04:16]} Qc7 {[%emt 0:04:50]} 13. h5 {[%emt 0:03:51]} f6 {[%emt 0:07:43]} 14. Nf4 {[%emt 0:12:06]} Nd8 {[%emt 0:14:37]} 15. Bh3 {[%emt 0:08:49]} Ne5 {[%emt 0:11:14]} 16. Qe2 {[%emt 0:03:37]} Qc6 {[%emt 0:01:06]} 17. h6 {[%emt 0:13:32]} g6 {[%emt 0:03:28]} 18. gxf6 {[%emt 0:00:30]} Bxf6 {[%emt 0:01:18]} 19. Kb1 {[%emt 0:00:20]} O-O {[%emt 0:01:12]} 20. Rhg1 {[%emt 0:01:31]} Rf7 {[%emt 0:05:05]} 21. Nh5 {[%emt 0:01:32]} Bh8 {[%emt 0:03:20]} 22. f4 {[%emt 0:02:32]} Nd7 {[%emt 0:01:26]} 23. f5 {[%emt 0:01:12]} Nf8 {[%emt 0:02:11]} 24. Nf4 {[%emt 0:06:09]} e5 {[%emt 0:03:07]} 25. Nxg6 {[%emt 0:12:06]} hxg6 {[%emt 0:01:14]} 26. fxg6 {[%emt 0:00:14]} Nxg6 {[%emt 0:01:30]} 27. Bf5 {[%emt 0:00:31]} Rf6 {[%emt 0:02:14]} 28. Qh5 {[%emt 0:00:43]} Kh7 {[%emt 0:01:29]} 29. Rxg6 {[%emt 0:23:32]} Rxf5 {[%emt 0:01:32]} 30. exf5 {[%emt 0:00:00]} Qd5 {[%emt 0:01:20]} 31. Rg7+ {[%emt 0:00:00]} Bxg7 {[%emt 0:00:32]} 32. Qg6+ {[%emt 0:00:00]} 1-0